[Event "WYCC U18 Open 2019"]
[Site "Mumbai"]
[Date "2019.10.11"]
[Round "10.1"]
[White "Praggnanandhaa R"]
[Black "Pultinevicius, Paulius"]
[Result "1-0"]
[ECO "B12"]
[WhiteElo "2567"]
[BlackElo "2503"]
[Annotator "ChessBase"]
[PlyCount "125"]
[EventDate "2019.10.02"]
[EventType "swiss"]
[EventCountry "IND"]
[SourceTitle "playchess.com"]
[Source "ChessBase"]
[SourceQuality "1"]
[TimeControl "40/5400+30:1800+30"]

1. e4 {[%emt 0:00:00]} c6 {[%emt 0:00:00]} 2. d4 {[%emt 0:00:05]} d5 {[%emt 0:00:03]} 3. e5 {[%emt 0:00:04]} Bf5 {[%emt 0:00:37]} 4. Nd2 {[%emt 0:00:44]} e6 {[%emt 0:00:12]} 5. Nb3 {[%emt 0:00:07]} Nd7 {[%emt 0:00:10]} 6. Nf3 {[%emt 0:00:07]} c5 {[%emt 0:01:15]} 7. dxc5 {[%emt 0:07:12]} Bxc5 {[%emt 0:00:11]} 8. Nxc5 {[%emt 0:05:26]} Nxc5 {[%emt 0:00:07]} 9. Nd4 {[%emt 0:02:26]} Ne7 {[%emt 0:00:13]} 10. Bb5+ {[%emt 0:06:41]} Nd7 {[%emt 0:01:39]} 11. f4 {[%emt 0:01:29]} Be4 {[%emt 0:04:41]} 12. O-O {[%emt 0:04:58]} O-O {[%emt 0:04:39]} 13. Be3 {[%emt 0:04:00]} Rc8 {[%emt 0:03:00]} 14. Bf2 {[%emt 0:12:56]} a6 {[%emt 0:14:29]} 15. Be2 {[%emt 0:02:27]} Nc5 {[%emt 0:01:55]} 16. c3 {[%emt 0:04:53]} b5 {[%emt 0:03:56]} 17. Nb3 {[%emt 0:05:08]} Na4 {[%emt 0:01:34]} 18. Qd2 {[%emt 0:00:43]} Nf5 {[%emt 0:02:29]} 19. Nd4 {[%emt 0:02:58]} Qd7 {[%emt 0:14:35]} 20. Rac1 {[%emt 0:17:33]} Rc7 {[%emt 0:05:54]} 21. b3 {[%emt 0:05:12]} Nc5 {[%emt 0:00:52]} 22. Rfd1 {[%emt 0:00:28]} Rfc8 {[%emt 0:03:38]} 23. Qb2 {[%emt 0:00:58]} Rb8 {[%emt 0:11:18]} 24. Qa3 {[%emt 0:01:33]} Qc8 {[%emt 0:00:26]} 25. Bf1 {[%emt 0:06:22]} Ne7 {[%emt 0:01:37]} 26. c4 {[%emt 0:00:58]} dxc4 {[%emt 0:01:42]} 27. bxc4 {[%emt 0:00:08]} b4 {[%emt 0:05:19]} 28. Qa5 {[%emt 0:03:46]} Nd7 {[%emt 0:06:46]} 29. Nb3 {[%emt 0:02:16]} h6 {[%emt 0:05:05]} 30. c5 {[%emt 0:02:19]} Bb7 {[%emt 0:03:49]} 31. Rd6 {[%emt 0:00:43]} Nc6 {[%emt 0:02:29]} 32. Qa4 {[%emt 0:00:07]} g5 {[%emt 0:00:34]} 33. Na5 {[%emt 0:00:58]} Nxa5 {[%emt 0:00:41]} 34. Qxa5 {[%emt 0:00:01]} gxf4 {[%emt 0:00:27]} 35. c6 {[%emt 0:00:29]} Bxc6 {[%emt 0:00:36]} 36. Bxa6 {[%emt 0:00:09]} Ra8 {[%emt 0:00:30]} 37. Bxc8 {[%emt 0:00:31]} Rxa5 {[%emt 0:00:04]} 38. Bxd7 {[%emt 0:01:10]} Rxd7 {[%emt 0:00:06]} 39. Rcxc6 {[%emt 0:00:07]} Rb7 {[%emt 0:00:47]} 40. Ra6 {[%emt 0:01:14]} Rxe5 {[%emt 0:00:55]} 41. Rab6 {[%emt 0:04:29]} Rxb6 {[%emt 0:03:24]} 42. Rxb6 {[%emt 0:00:36]} Ra5 {[%emt 0:00:26]} 43. Rxb4 {[%emt 0:01:12]} Rxa2 {[%emt 0:00:04]} 44. Bd4 {[%emt 0:00:14]} Ra5 {[%emt 0:00:57]} 45. Bf6 {[%emt 0:05:11]} Rf5 {[%emt 0:00:48]} 46. Bb2 {[%emt 0:00:23]} Kh7 {[%emt 0:02:17]} 47. Re4 {[%emt 0:01:53]} Kg6 {[%emt 0:05:53]} 48. Be5 {[%emt 0:02:02]} Kg5 {[%emt 0:02:09]} 49. Bd6 {[%emt 0:01:12]} f3 {[%emt 0:00:14]} 50. g3 {[%emt 0:01:44]} Rd5 {[%emt 0:00:58]} 51. Be7+ {[%emt 0:00:50]} Kg6 {[%emt 0:00:30]} 52. Rg4+ {[%emt 0:00:20]} Kh5 {[%emt 0:00:27]} 53. Rg7 {[%emt 0:01:09]} f5 {[%emt 0:00:15]} 54. h3 {[%emt 0:00:12]} Rd4 {[%emt 0:01:59]} 55. Kf2 {[%emt 0:00:17]} e5 {[%emt 0:00:15]} 56. Kxf3 {[%emt 0:00:37]} Rd3+ {[%emt 0:00:20]} 57. Ke2 {[%emt 0:00:40]} Rd4 {[%emt 0:00:00]} 58. Bf6 {[%emt 0:01:06]} Ra4 {[%emt 0:00:00]} 59. Kd3 {[%emt 0:00:30]} Rd4+ {[%emt 0:00:21]} 60. Kc3 {[%emt 0:00:30]} Re4 {[%emt 0:00:10]} 61. Rg8 {[%emt 0:00:30]} Ra4 {[%emt 0:05:13]} 62. Bxe5 {[%emt 0:00:34]} Ra1 {[%emt 0:00:30]} 63. Rh8 {[%emt 0:00:48]} 1-0

[Event "WYCC U18 Open 2019"]
[Site "Mumbai"]
[Date "2019.10.11"]
[Round "10.2"]
[White "Mitrabha, Guha"]
[Black "Sargsyan, Shant"]
[Result "0-1"]
[ECO "E67"]
[WhiteElo "2434"]
[BlackElo "2580"]
[Annotator "ChessBase"]
[PlyCount "90"]
[EventDate "2019.10.02"]
[EventType "swiss"]
[EventCountry "IND"]
[SourceTitle "playchess.com"]
[Source "ChessBase"]
[SourceQuality "1"]
[TimeControl "40/5400+30:1800+30"]

1. d4 {[%emt 0:06:51]} Nf6 {[%emt 0:01:01]} 2. c4 {[%emt 0:00:06]} g6 {[%emt 0:00:27]} 3. g3 {[%emt 0:00:08]} Bg7 {[%emt 0:00:31]} 4. Bg2 {[%emt 0:00:06]} O-O {[%emt 0:00:33]} 5. Nf3 {[%emt 0:00:04]} d6 {[%emt 0:00:45]} 6. Nc3 {[%emt 0:00:08]} Nbd7 {[%emt 0:00:50]} 7. O-O {[%emt 0:00:10]} e5 {[%emt 0:00:26]} 8. Qc2 {[%emt 0:00:07]} Re8 {[%emt 0:03:13]} 9. Rd1 {[%emt 0:00:08]} c6 {[%emt 0:02:12]} 10. e4 {[%emt 0:00:33]} exd4 {[%emt 0:04:32]} 11. Nxd4 {[%emt 0:00:06]} Ne5 {[%emt 0:03:25]} 12. c5 {[%emt 0:04:35]} d5 {[%emt 0:38:59]} 13. exd5 {[%emt 0:01:00]} Nxd5 {[%emt 0:01:23]} 14. Nxd5 {[%emt 0:02:00]} cxd5 {[%emt 0:00:01]} 15. h3 {[%emt 0:05:45]} Be6 {[%emt 0:06:37]} 16. Bf4 {[%emt 0:09:36]} Rc8 {[%emt 0:01:13]} 17. Rac1 {[%emt 0:02:46]} Qd7 {[%emt 0:00:52]} 18. Kh2 {[%emt 0:00:44]} Nc6 {[%emt 0:03:22]} 19. Be3 {[%emt 0:08:49]} Ne5 {[%emt 0:07:27]} 20. b3 {[%emt 0:06:30]} a6 {[%emt 0:01:28]} 21. Qd2 {[%emt 0:00:54]} Qe7 {[%emt 0:02:15]} 22. Re1 {[%emt 0:01:23]} Nc6 {[%emt 0:02:14]} 23. b4 {[%emt 0:03:39]} Qd7 {[%emt 0:05:41]} 24. a3 {[%emt 0:01:05]} Rcd8 {[%emt 0:03:56]} 25. Rcd1 {[%emt 0:00:51]} Bf5 {[%emt 0:04:47]} 26. Nxf5 {[%emt 0:04:15]} Qxf5 {[%emt 0:00:01]} 27. Bf4 {[%emt 0:00:45]} Rxe1 {[%emt 0:01:35]} 28. Rxe1 {[%emt 0:00:30]} h5 {[%emt 0:02:28]} 29. Bc7 {[%emt 0:02:53]} Rc8 {[%emt 0:01:36]} 30. Bd6 {[%emt 0:00:14]} d4 {[%emt 0:00:13]} 31. Be4 {[%emt 0:01:04]} Qd7 {[%emt 0:00:47]} 32. Bd5 {[%emt 0:02:06]} Re8 {[%emt 0:00:01]} 33. Kg2 {[%emt 0:01:12]} Bf8 {[%emt 0:01:03]} 34. Rxe8 {[%emt 0:01:03]} Qxe8 {[%emt 0:00:01]} 35. Qg5 {[%emt 0:00:13]} Kg7 {[%emt 0:01:01]} 36. Bf4 {[%emt 0:00:17]} Kh7 {[%emt 0:00:32]} 37. Qf6 {[%emt 0:00:14]} Bg7 {[%emt 0:00:29]} 38. Qxf7 {[%emt 0:00:25]} Qxf7 {[%emt 0:00:28]} 39. Bxf7 {[%emt 0:00:04]} d3 {[%emt 0:00:22]} 40. Bd5 {[%emt 0:04:54]} Bb2 {[%emt 0:00:24]} 41. a4 {[%emt 0:31:20]} Bc3 {[%emt 0:06:08]} 42. b5 {[%emt 0:00:00]} axb5 {[%emt 0:01:25]} 43. axb5 {[%emt 0:00:00]} d2 {[%emt 0:02:04]} 44. bxc6 {[%emt 0:00:00]} d1=Q 45. Bf3 {[%emt 0:00:00]} Qc2 {[%emt 0:02:58]} 0-1

[Event "WYCC U18 Open 2019"]
[Site "Mumbai"]
[Date "2019.10.11"]
[Round "10.3"]
[White "Om Kharola"]
[Black "Iniyan, P."]
[Result "1/2-1/2"]
[ECO "B90"]
[WhiteElo "2328"]
[BlackElo "2509"]
[Annotator "RC"]
[PlyCount "87"]
[EventDate "2019.10.02"]
[EventType "swiss"]
[EventCountry "IND"]
[SourceTitle "playchess.com"]
[Source "ChessBase"]
[SourceQuality "1"]
[TimeControl "40/5400+30:1800+30"]

1. e4 {[%emt 0:00:00]} c5 {[%emt 0:01:12]} 2. Nf3 {[%emt 0:00:00]} d6 {[%emt 0:00:16]} 3. d4 {[%emt 0:00:00]} cxd4 {[%emt 0:00:08]} 4. Nxd4 {[%emt 0:00:00]} Nf6 5. Nc3 {[%emt 0:00:00]} a6 {[%emt 0:00:08]} 6. h3 {[%emt 0:00:09]} e6 {[%emt 0:00:12]} 7. g4 {[%emt 0:00:09]} h6 {[%emt 0:00:05]} 8. Bg2 g5 {[%emt 0:00:06]} 9. Be3 {[%emt 0:00:44]} Nbd7 {[%emt 0:00:08]} 10. Qe2 {[%emt 0:00:21]} Ne5 {[%emt 0:00:39]} 11. O-O-O {[%emt 0:01:08]} b5 {[%emt 0:04:10]} 12. f4 {[%emt 0:02:13]} gxf4 {[%emt 0:00:08]} 13. Bxf4 {[%emt 0:00:02]} Nfd7 {[%emt 0:02:19]} 14. Qf2 {[%emt 0:00:43]} Qc7 {[%emt 0:08:39]} 15. Nce2 {[%emt 0:08:29]} Bb7 {[%emt 0:01:49]} 16. Kb1 {[%emt 0:03:05]} Nc5 {[%emt 0:19:36]} 17. Ng3 {[%emt 0:00:56]} O-O-O {[%emt 0:00:15]} 18. Nb3 {[%emt 0:04:13]} Ncd7 {[%emt 0:15:32]} 19. Bd2 {[%emt 0:02:38]} Nb6 {[%emt 0:00:09]} 20. Ba5 {[%emt 0:04:57]} Nec4 {[%emt 0:00:09]} 21. Rhf1 {[%emt 0:00:28]} Bg7 {[%emt 0:10:40]} 22. Bxb6 {[%emt 0:00:46]} Nxb6 {[%emt 0:00:22]} 23. Qxf7 {[%emt 0:00:55]} Qxf7 {[%emt 0:00:07]} 24. Rxf7 {[%emt 0:00:10]} Be5 {[%emt 0:00:04]} 25. Na5 {[%emt 0:01:49]} Ba8 {[%emt 0:08:24]} 26. Ne2 {[%emt 0:01:15]} Na4 {[%emt 0:03:29]} 27. c3 {[%emt 0:04:55]} Nc5 {[%emt 0:01:37]} 28. Nd4 {[%emt 0:01:15]} Rd7 {[%emt 0:03:01]} 29. Rf2 {[%emt 0:07:17]} Bxe4+ {[%emt 0:08:08]} 30. Bxe4 {[%emt 0:00:17]} Nxe4 {[%emt 0:00:05]} 31. Re2 {[%emt 0:00:57]} d5 {[%emt 0:02:11]} 32. Nac6 {[%emt 0:02:01]} Bxd4 {[%emt 0:00:07]} 33. cxd4 {[%emt 0:00:55]} Rf8 {[%emt 0:01:58]} 34. Rc1 {[%emt 0:02:41]} Kb7 {[%emt 0:00:39]} 35. Rec2 {[%emt 0:03:14]} Rf2 {[%emt 0:06:35]} 36. Na5+ {[%emt 0:04:06]} Kb6 {[%emt 0:00:18]} 37. b4 {[%emt 0:03:58]} Rxc2 {[%emt 0:01:54]} 38. Rxc2 {[%emt 0:00:01]} Rc7 {[%emt 0:00:01]} 39. Nb3 {[%emt 0:01:45]} Rxc2 {[%emt 0:01:57]} 40. Kxc2 {[%emt 0:00:06]} Nf2 {[%emt 0:00:07]} 41. Nc5 {[%emt 0:32:03]} Nxh3 {[%emt 0:30:28]} 42. Nxe6 {[%emt 0:00:10]} Nf2 {[%emt 0:00:11]} 43. g5 {[%emt 0:00:17]} hxg5 {[%emt 0:00:05]} 44. Nxg5 {[%emt 0:00:39]} 1/2-1/2

[Event "WYCC U18 Open 2019"]
[Site "Mumbai"]
[Date "2019.10.11"]
[Round "10.4"]
[White "Zarubitski, Viachaslau"]
[Black "Arjun Kalyan"]
[Result "0-1"]
[ECO "B30"]
[WhiteElo "2435"]
[BlackElo "2483"]
[Annotator "RC"]
[PlyCount "102"]
[EventDate "2019.10.02"]
[EventType "swiss"]
[EventCountry "IND"]
[SourceTitle "playchess.com"]
[Source "ChessBase"]
[SourceQuality "1"]
[TimeControl "40/5400+30:1800+30"]

1. e4 {[%emt 0:00:00]} c5 {[%emt 0:00:00]} 2. Nf3 {[%emt 0:01:30]} Nc6 {[%emt 0:00:00]} 3. c3 {[%emt 0:00:12]} d5 {[%emt 0:01:44]} 4. exd5 {[%emt 0:00:15]} Qxd5 {[%emt 0:00:12]} 5. d4 {[%emt 0:00:29]} Bf5 {[%emt 0:01:53]} 6. Be3 {[%emt 0:03:16]} Nf6 {[%emt 0:02:22]} 7. Na3 {[%emt 0:02:46]} cxd4 {[%emt 0:01:03]} 8. Nb5 {[%emt 0:09:54]} O-O-O {[%emt 0:01:29]} 9. Nfxd4 {[%emt 0:08:02]} Ng4 {[%emt 0:00:52]} 10. Qe2 {[%emt 0:42:58]} Nxe3 {[%emt 0:03:21]} 11. Qxe3 {[%emt 0:00:01]} Nxd4 {[%emt 0:15:13]} 12. Nxd4 {[%emt 0:00:07]} e6 {[%emt 0:11:13]} 13. Nb3 {[%emt 0:06:22]} Qe4 {[%emt 0:10:34]} 14. Be2 {[%emt 0:04:05]} Qxe3 {[%emt 0:02:05]} 15. fxe3 {[%emt 0:00:00]} e5 {[%emt 0:01:37]} 16. Rf1 Be6 {[%emt 0:01:26]} 17. Rd1 {[%emt 0:06:11]} Be7 {[%emt 0:02:53]} 18. Kf2 {[%emt 0:00:08]} Kc7 {[%emt 0:00:54]} 19. Rxd8 {[%emt 0:00:27]} Rxd8 {[%emt 0:00:36]} 20. Rd1 {[%emt 0:00:01]} Rxd1 {[%emt 0:03:22]} 21. Bxd1 {[%emt 0:00:01]} f5 {[%emt 0:02:03]} 22. Nc1 {[%emt 0:02:27]} Kd6 {[%emt 0:02:17]} 23. Bb3 {[%emt 0:00:13]} Bd7 {[%emt 0:00:16]} 24. Ne2 {[%emt 0:00:53]} Bd8 {[%emt 0:02:30]} 25. Bg8 {[%emt 0:05:32]} h5 {[%emt 0:04:15]} 26. e4 {[%emt 0:01:23]} Bb6+ {[%emt 0:11:48]} 27. Ke1 {[%emt 0:00:01]} f4 {[%emt 0:00:06]} 28. Bf7 {[%emt 0:04:53]} Bc6 {[%emt 0:04:26]} 29. Bxh5 {[%emt 0:00:53]} Bxe4 {[%emt 0:00:01]} 30. Bf3 {[%emt 0:00:06]} Bc6 {[%emt 0:00:11]} 31. Bxc6 {[%emt 0:00:43]} bxc6 {[%emt 0:00:01]} 32. Kd2 {[%emt 0:01:04]} Kd5 {[%emt 0:00:11]} 33. b3 {[%emt 0:00:58]} Be3+ {[%emt 0:00:07]} 34. Kc2 {[%emt 0:00:31]} e4 {[%emt 0:00:12]} 35. a4 {[%emt 0:00:28]} Ke5 {[%emt 0:04:09]} 36. b4 {[%emt 0:00:11]} g5 {[%emt 0:00:31]} 37. h3 {[%emt 0:00:01]} c5 {[%emt 0:02:04]} 38. Kb3 f3 {[%emt 0:02:05]} 39. gxf3 {[%emt 0:01:23]} exf3 {[%emt 0:00:03]} 40. Ng3 {[%emt 0:00:37]} Kf4 {[%emt 0:01:24]} 41. Nf1 {[%emt 0:02:54]} f2 {[%emt 0:02:09]} 42. b5 {[%emt 0:09:26]} Kf3 {[%emt 0:00:38]} 43. a5 {[%emt 0:00:18]} Ke2 {[%emt 0:01:10]} 44. Ng3+ {[%emt 0:00:01]} Ke1 {[%emt 0:00:06]} 45. a6 {[%emt 0:01:43]} Bf4 {[%emt 0:01:07]} 46. b6 {[%emt 0:00:05]} axb6 {[%emt 0:00:07]} 47. a7 {[%emt 0:00:46]} Bxg3 {[%emt 0:00:02]} 48. a8=Q f1=Q {[%emt 0:00:05]} 49. Qe4+ {[%emt 0:00:26]} Qe2 {[%emt 0:00:41]} 50. Qh1+ {[%emt 0:00:03]} Kf2 {[%emt 0:00:06]} 51. Qd5 {[%emt 0:00:11]} Bf4 {[%emt 0:00:22]} 0-1

[Event "WYCC U18 Open 2019"]
[Site "Mumbai"]
[Date "2019.10.11"]
[Round "10.5"]
[White "Blohberger, Felix"]
[Black "Davtyan, Artur"]
[Result "0-1"]
[ECO "C70"]
[WhiteElo "2448"]
[BlackElo "2418"]
[Annotator "NA"]
[PlyCount "210"]
[EventDate "2019.10.02"]
[EventType "swiss"]
[EventCountry "IND"]
[SourceTitle "playchess.com"]
[Source "ChessBase"]
[SourceQuality "1"]
[TimeControl "40/5400+30:1800+30"]

1. e4 {[%emt 0:00:00]} e5 {[%emt 0:00:00]} 2. Nf3 {[%emt 0:00:00]} Nc6 {[%emt 0:00:49]} 3. Bb5 {[%emt 0:00:00]} a6 {[%emt 0:00:04]} 4. Ba4 {[%emt 0:00:00]} g6 {[%emt 0:00:02]} 5. d4 {[%emt 0:03:46]} exd4 {[%emt 0:01:36]} 6. Nxd4 {[%emt 0:00:26]} Bg7 {[%emt 0:00:49]} 7. Nxc6 {[%emt 0:00:08]} bxc6 {[%emt 0:04:00]} 8. Nc3 {[%emt 0:01:45]} Ne7 {[%emt 0:00:27]} 9. Bb3 {[%emt 0:08:06]} O-O {[%emt 0:07:30]} 10. O-O {[%emt 0:04:37]} d6 {[%emt 0:00:36]} 11. Be3 {[%emt 0:03:32]} c5 {[%emt 0:05:49]} 12. Qd2 {[%emt 0:09:24]} Be6 {[%emt 0:06:47]} 13. Bxe6 {[%emt 0:01:51]} fxe6 {[%emt 0:00:58]} 14. Rad1 {[%emt 0:02:29]} Qb8 {[%emt 0:02:12]} 15. Na4 {[%emt 0:03:19]} Rf7 {[%emt 0:17:40]} 16. b3 {[%emt 0:01:38]} Nc6 {[%emt 0:02:09]} 17. f3 {[%emt 0:00:33]} Qb5 {[%emt 0:00:21]} 18. Nc3 {[%emt 0:06:53]} Qa5 {[%emt 0:01:06]} 19. Na4 {[%emt 0:00:18]} Qxd2 {[%emt 0:02:41]} 20. Rxd2 {[%emt 0:00:21]} h6 {[%emt 0:00:08]} 21. Rb1 {[%emt 0:07:01]} Kh7 {[%emt 0:02:29]} 22. c3 {[%emt 0:06:28]} g5 {[%emt 0:07:32]} 23. Rc2 {[%emt 0:02:24]} Rb8 {[%emt 0:12:01]} 24. Nb2 {[%emt 0:03:28]} Ne5 {[%emt 0:00:10]} 25. Nd1 {[%emt 0:09:16]} Kg6 {[%emt 0:02:46]} 26. Nf2 {[%emt 0:00:50]} h5 {[%emt 0:02:03]} 27. Rd1 {[%emt 0:11:35]} Rbf8 {[%emt 0:12:53]} 28. b4 {[%emt 0:01:54]} c4 {[%emt 0:00:03]} 29. a4 Nd7 {[%emt 0:04:41]} 30. b5 {[%emt 0:10:08]} axb5 {[%emt 0:00:18]} 31. axb5 {[%emt 0:00:05]} Rb8 {[%emt 0:00:20]} 32. Rb1 {[%emt 0:00:24]} Be5 {[%emt 0:02:10]} 33. Rcc1 {[%emt 0:02:24]} Nb6 {[%emt 0:02:18]} 34. Ra1 {[%emt 0:00:35]} d5 {[%emt 0:00:41]} 35. Ra6 {[%emt 0:00:35]} Rd7 {[%emt 0:00:21]} 36. g3 {[%emt 0:00:53]} Rf7 {[%emt 0:00:56]} 37. Kg2 {[%emt 0:00:09]} Rf6 {[%emt 0:00:14]} 38. Nh3 {[%emt 0:00:55]} g4 {[%emt 0:00:33]} 39. fxg4 {[%emt 0:00:07]} dxe4 {[%emt 0:00:44]} 40. gxh5+ {[%emt 0:01:07]} Kxh5 {[%emt 0:00:14]} 41. Bxb6 {[%emt 0:11:02]} cxb6 {[%emt 0:03:09]} 42. Re1 {[%emt 0:02:09]} Rd8 {[%emt 0:00:31]} 43. Ra2 {[%emt 0:01:38]} Bxc3 {[%emt 0:02:44]} 44. Rxe4 {[%emt 0:00:13]} Rd4 {[%emt 0:00:23]} 45. Nf4+ {[%emt 0:05:51]} Kh6 {[%emt 0:03:27]} 46. Rxd4 {[%emt 0:00:17]} Bxd4 {[%emt 0:00:05]} 47. Ra4 {[%emt 0:00:11]} e5 {[%emt 0:04:57]} 48. Rxc4 {[%emt 0:00:34]} Kg5 {[%emt 0:00:05]} 49. h4+ {[%emt 0:04:57]} Kg4 {[%emt 0:03:04]} 50. Nd3 {[%emt 0:01:08]} Kf5 {[%emt 0:00:07]} 51. Nf2 {[%emt 0:02:02]} Rf8 {[%emt 0:01:55]} 52. Rc7 {[%emt 0:03:17]} Ra8 {[%emt 0:09:47]} 53. g4+ {[%emt 0:01:00]} Ke6 {[%emt 0:00:01]} 54. Ne4 {[%emt 0:01:05]} Ra2+ {[%emt 0:00:06]} 55. Kf3 {[%emt 0:00:27]} Ra3+ {[%emt 0:00:02]} 56. Kg2 {[%emt 0:00:06]} Ra2+ {[%emt 0:00:17]} 57. Kf1 {[%emt 0:01:01]} Rb2 {[%emt 0:06:51]} 58. Rc6+ {[%emt 0:00:11]} Kd7 {[%emt 0:01:28]} 59. h5 {[%emt 0:00:34]} Rxb5 {[%emt 0:00:06]} 60. Rd6+ {[%emt 0:00:50]} Ke7 {[%emt 0:00:06]} 61. h6 {[%emt 0:00:52]} Rb1+ {[%emt 0:01:20]} 62. Kg2 {[%emt 0:00:49]} Rg1+ {[%emt 0:00:24]} 63. Kf3 {[%emt 0:00:41]} Rf1+ {[%emt 0:00:17]} 64. Kg3 {[%emt 0:00:44]} Rg1+ {[%emt 0:00:28]} 65. Kf3 {[%emt 0:00:26]} Rf1+ {[%emt 0:00:02]} 66. Ke2 {[%emt 0:00:51]} Rf4 {[%emt 0:00:07]} 67. h7 {[%emt 0:00:35]} Rxe4+ {[%emt 0:00:07]} 68. Kd1 {[%emt 0:00:30]} Rxg4 {[%emt 0:00:06]} 69. h8=Q {[%emt 0:00:30]} Rg1+ {[%emt 0:00:03]} 70. Kd2 {[%emt 0:00:07]} Kxd6 {[%emt 0:00:01]} 71. Qf8+ {[%emt 0:00:23]} Kd5 {[%emt 0:00:29]} 72. Qf7+ {[%emt 0:00:50]} Kc5 {[%emt 0:00:12]} 73. Qe7+ {[%emt 0:00:22]} Kb5 {[%emt 0:00:52]} 74. Qe8+ {[%emt 0:00:14]} Kb4 {[%emt 0:00:06]} 75. Qe7+ {[%emt 0:00:24]} Kb3 {[%emt 0:00:18]} 76. Qe6+ {[%emt 0:00:16]} Kb2 {[%emt 0:00:18]} 77. Qc6 {[%emt 0:00:51]} Rg3 {[%emt 0:00:55]} 78. Qc2+ {[%emt 0:00:46]} Ka3 {[%emt 0:00:07]} 79. Qc4 Rc3 {[%emt 0:00:22]} 80. Qd5 {[%emt 0:01:12]} Rc5 {[%emt 0:00:12]} 81. Qa8+ {[%emt 0:00:23]} Kb2 {[%emt 0:00:16]} 82. Qa4 {[%emt 0:00:42]} Bc3+ {[%emt 0:00:00]} 83. Kd3 {[%emt 0:00:30]} Rd5+ {[%emt 0:00:01]} 84. Ke3 {[%emt 0:00:21]} b5 {[%emt 0:00:02]} 85. Qa6 {[%emt 0:00:36]} b4 {[%emt 0:00:08]} 86. Qe2+ {[%emt 0:00:31]} Rd2 {[%emt 0:00:06]} 87. Qc4 {[%emt 0:00:35]} Rd4 {[%emt 0:00:24]} 88. Qb5 {[%emt 0:00:27]} b3 {[%emt 0:00:07]} 89. Qa6 {[%emt 0:00:30]} Kc2 {[%emt 0:02:02]} 90. Qg6+ {[%emt 0:00:10]} e4 {[%emt 0:02:05]} 91. Qg2+ {[%emt 0:00:07]} Kc1 {[%emt 0:00:01]} 92. Qf1+ {[%emt 0:00:32]} Rd1 {[%emt 0:00:11]} 93. Qa6 {[%emt 0:01:08]} b2 {[%emt 0:03:20]} 94. Qa3 {[%emt 0:00:06]} Rd3+ {[%emt 0:02:35]} 95. Kxe4 {[%emt 0:00:31]} Rd4+ {[%emt 0:00:03]} 96. Ke3 {[%emt 0:00:29]} Kc2 {[%emt 0:00:30]} 97. Qa2 {[%emt 0:00:04]} Rh4 {[%emt 0:00:42]} 98. Kf3 {[%emt 0:01:01]} Bd2 {[%emt 0:00:23]} 99. Ke2 {[%emt 0:00:51]} Re4+ {[%emt 0:00:11]} 100. Kf2 {[%emt 0:00:23]} Rf4+ {[%emt 0:00:46]} 101. Ke2 {[%emt 0:00:06]} Rd4 {[%emt 0:00:49]} 102. Kf2 {[%emt 0:01:02]} Re4 {[%emt 0:00:03]} 103. Kf1 {[%emt 0:00:28]} Re3 {[%emt 0:00:23]} 104. Qa4+ {[%emt 0:00:34]} Kc1 {[%emt 0:00:04]} 105. Qc4+ {[%emt 0:00:31]} Rc3 {[%emt 0:00:04]} 0-1

[Event "WYCC U18 Open 2019"]
[Site "Mumbai"]
[Date "2019.10.11"]
[Round "10.6"]
[White "Buckels, Valentin"]
[Black "Zhalmakhanov, Ramazan"]
[Result "1-0"]
[ECO "E06"]
[WhiteElo "2442"]
[BlackElo "2374"]
[Annotator "NA RC"]
[PlyCount "101"]
[EventDate "2019.10.02"]
[EventType "swiss"]
[EventCountry "IND"]
[SourceTitle "playchess.com"]
[Source "ChessBase"]
[SourceQuality "1"]
[TimeControl "40/5400+30:1800+30"]

1. d4 {[%emt 0:00:00]} Nf6 {[%emt 0:00:00]} 2. c4 {[%emt 0:00:00]} e6 {[%emt 0:00:00]} 3. g3 {[%emt 0:00:03]} d5 {[%emt 0:00:31]} 4. Nf3 {[%emt 0:00:11]} Be7 {[%emt 0:00:07]} 5. Bg2 {[%emt 0:00:05]} O-O {[%emt 0:00:09]} 6. Nc3 {[%emt 0:00:06]} dxc4 {[%emt 0:05:48]} 7. Ne5 {[%emt 0:00:18]} c5 {[%emt 0:00:19]} 8. dxc5 {[%emt 0:00:34]} Qxd1+ {[%emt 0:01:03]} 9. Nxd1 {[%emt 0:00:05]} Bxc5 {[%emt 0:00:08]} 10. Nc3 {[%emt 0:00:37]} Rd8 {[%emt 0:01:24]} 11. O-O {[%emt 0:10:06]} Nc6 {[%emt 0:09:01]} 12. Nxc6 {[%emt 0:11:25]} bxc6 {[%emt 0:00:10]} 13. Bxc6 {[%emt 0:00:26]} Rb8 {[%emt 0:00:08]} 14. Bf4 {[%emt 0:02:31]} Bd6 $16 {[%emt 0:11:40]} (14... Rb4 $1 $14) 15. Rfd1 {[%emt 0:15:05]} Rb6 {[%emt 0:00:08]} 16. Bxd6 {[%emt 0:01:59]} Rxc6 {[%emt 0:00:07]} 17. Bc5 {[%emt 0:01:13]} Nd5 {[%emt 0:11:39]} 18. Bxa7 {[%emt 0:07:32]} Rcd6 {[%emt 0:03:53]} 19. Bc5 {[%emt 0:04:21]} R6d7 {[%emt 0:00:15]} 20. Nxd5 {[%emt 0:06:43]} Rxd5 {[%emt 0:01:45]} 21. Rxd5 {[%emt 0:00:25]} Rxd5 {[%emt 0:00:19]} 22. Bb4 {[%emt 0:00:15]} f6 {[%emt 0:00:33]} 23. f3 {[%emt 0:01:17]} Kf7 {[%emt 0:00:10]} 24. Kf2 {[%emt 0:00:28]} e5 {[%emt 0:00:17]} 25. h4 {[%emt 0:02:36]} Rb5 {[%emt 0:00:39]} 26. Bc3 {[%emt 0:01:06]} Rd5 {[%emt 0:00:16]} 27. a4 {[%emt 0:00:40]} Ke6 {[%emt 0:00:23]} 28. a5 {[%emt 0:00:54]} Ba6 {[%emt 0:00:11]} 29. g4 {[%emt 0:06:18]} Rd7 {[%emt 0:01:09]} 30. Ke3 {[%emt 0:09:56]} Bb5 {[%emt 0:03:02]} 31. Rf1 {[%emt 0:01:52]} h6 {[%emt 0:00:30]} 32. h5 {[%emt 0:05:26]} Kf7 {[%emt 0:02:45]} 33. Kf2 {[%emt 0:02:00]} Ke6 {[%emt 0:01:09]} 34. Ra1 {[%emt 0:00:33]} Kf7 {[%emt 0:00:22]} 35. Ke3 {[%emt 0:05:50]} Rd6 {[%emt 0:00:47]} 36. Bb4 {[%emt 0:00:31]} Rd7 {[%emt 0:00:14]} 37. Bc5 {[%emt 0:00:55]} Ba6 {[%emt 0:00:13]} 38. Rc1 {[%emt 0:02:47]} Ke6 {[%emt 0:00:50]} 39. Bb4 {[%emt 0:01:19]} Rb7 {[%emt 0:00:12]} 40. Bc3 {[%emt 0:00:20]} Rd7 {[%emt 0:00:08]} 41. Kf2 {[%emt 0:01:54]} Bb7 42. Ra1 {[%emt 0:01:00]} Ba6 {[%emt 0:02:01]} 43. e3 {[%emt 0:03:58]} Rd5 {[%emt 0:02:49]} 44. f4 {[%emt 0:00:53]} exf4 {[%emt 0:00:20]} 45. exf4 {[%emt 0:00:05]} Kf7 {[%emt 0:00:04]} 46. Re1 {[%emt 0:01:50]} Rd7 {[%emt 0:03:26]} 47. f5 {[%emt 0:06:17]} Bb5 {[%emt 0:02:39]} 48. Re6 {[%emt 0:00:52]} Rb7 {[%emt 0:00:10]} 49. Ke3 {[%emt 0:01:09]} Ba4 {[%emt 0:01:56]} 50. a6 {[%emt 0:00:56]} Rd7 {[%emt 0:00:05]} 51. Bd4 {[%emt 0:01:23]} 1-0